lending/lending_fUSD_20241228
["ID","MTS","AMOUNT","RATE_DAILY","PERIOD"]
[346921252,1735381842851,-248.92345333,0.00012679,2]
[346921253,1735381842861,-1261.7,0.00012679,2]
[346921254,1735381842870,-500.0,0.00012679,2]
[346921255,1735381842879,-500.0,0.00012679,2]
[346921256,1735381842888,-500.0,0.00012679,2]
[346921257,1735381842898,-500.0,0.00012679,2]
[346921258,1735381842907,-500.0,0.00012679,2]
[346921259,1735381842916,-500.0,0.00012679,2]
[346921260,1735381842925,-500.0,0.00012679,2]
[346921261,1735381842934,-500.0,0.00012679,2]
[346921264,1735381842944,-650.48,0.00012679,2]
[346921267,1735381842953,-1429.15,0.00012679,2]
[346921268,1735381842962,-500.0,0.00012679,2]
[346921269,1735381842973,-500.0,0.00012679,2]
[346921270,1735381842982,-500.0,0.00012679,2]
[346921271,1735381842991,-500.0,0.00012679,2]
[346921272,1735381843002,-500.0,0.00012679,2]
[346921273,1735381843011,-180.44,0.00012679,2]
[346921275,1735381843020,-675.21,0.00012679,2]
[346921276,1735381843030,-500.0,0.00012679,2]
[346921277,1735381843039,-500.0,0.00012679,2]
[346921278,1735381843049,-3577.88,0.00012679,2]
[346921279,1735381843058,-311553.0496893,0.0001268,2]
[346921281,1735381843068,-500.0,0.00012695,2]
[346921282,1735381843078,-1162.02,0.00012695,2]
[346921283,1735381843087,-1491.36,0.00012695,2]
[346921284,1735381843096,-4156.55,0.00012695,2]
[346921285,1735381843105,-1334.02,0.00012695,2]
[346921286,1735381843116,-500.0,0.00012695,2]
[346921287,1735381843127,-2015.74,0.00012695,2]
[346921289,1735381843136,-1805.74,0.00012695,2]
[346921291,1735381843145,-371.91,0.00012695,2]
[346921293,1735381843154,-1010.44420832,0.00012739,2]
[346921295,1735381843163,-500.0,0.00012794,2]
[346921297,1735381843172,-500.0,0.00012794,2]
[346921299,1735381843181,-500.0,0.00012794,2]
[346921301,1735381843190,-500.0,0.00012794,2]
[346921303,1735381843199,-500.0,0.00012794,2]
[346921305,1735381843209,-500.0,0.00012794,2]
[346921307,1735381843221,-500.0,0.00012794,2]
[346921309,1735381843230,-500.0,0.00012794,2]
[346921311,1735381843239,-500.0,0.00012794,2]
[346921313,1735381843248,-570.26,0.00012794,2]
[346921315,1735381843257,-579.88,0.00012794,2]
[346921317,1735381843266,-500.0,0.00012794,2]
[346921319,1735381843276,-500.0,0.00012794,2]
[346921321,1735381843285,-500.0,0.00012794,2]
[346921322,1735381843294,-500.0,0.00012794,2]
[346921323,1735381843304,-759.74,0.00012794,2]
[346921324,1735381843313,-500.0,0.00012794,2]
[346921325,1735381843322,-500.0,0.00012794,2]
[346921326,1735381843331,-500.0,0.00012794,2]
[346921327,1735381843340,-500.0,0.00012794,2]
[346921328,1735381843351,-500.0,0.00012794,2]
[346921329,1735381843360,-500.0,0.00012794,2]
[346921330,1735381843369,-500.0,0.00012794,2]
[346921331,1735381843379,-500.0,0.00012794,2]
[346921332,1735381843388,-500.0,0.00012794,2]
[346921333,1735381843397,-500.0,0.00012794,2]
[346921334,1735381843406,-500.0,0.00012794,2]
[346921335,1735381843416,-744.46,0.00012794,2]
[346921336,1735381843427,-500.0,0.00012794,2]
[346921337,1735381843437,-500.0,0.00012794,2]
[346921338,1735381843446,-500.0,0.00012794,2]
[346921339,1735381843455,-500.0,0.00012794,2]
[346921340,1735381843465,-500.0,0.00012794,2]
[346921341,1735381843474,-500.0,0.00012794,2]
[346921342,1735381843484,-500.0,0.00012794,2]
[346921343,1735381843493,-500.0,0.00012794,2]
[346921344,1735381843503,-500.0,0.00012794,2]
[346921345,1735381843512,-500.0,0.00012794,2]
[346921346,1735381843521,-500.0,0.00012794,2]
[346921347,1735381843530,-597.58177088,0.00012794,2]
[346921348,1735381843539,-643.14,0.00012794,2]
[346921349,1735381843548,-500.0,0.00012794,2]
[346921350,1735381843557,-500.0,0.00012794,2]
[346921351,1735381843567,-500.0,0.00012794,2]
[346921352,1735381843576,-500.0,0.00012794,2]
[346921353,1735381843587,-500.0,0.00012794,2]
[346921354,1735381843597,-500.0,0.00012794,2]
[346921355,1735381843608,-500.0,0.00012794,2]
[346921356,1735381843617,-2168.66,0.00012794,2]
[346921357,1735381843626,-500.0,0.00012794,2]
[346921358,1735381843635,-500.0,0.00012794,2]
[346921360,1735381843644,-657.6,0.00012794,2]
[346921362,1735381843653,-500.0,0.00012794,2]
[346921364,1735381843662,-674.14,0.00012794,2]
[346921367,1735381843672,-500.0,0.00012794,2]
[346921370,1735381843681,-500.0,0.00012794,2]
[346921374,1735381843690,-818.67,0.00012794,2]
[346921377,1735381843700,-526.7,0.00012794,2]
[346921380,1735381843709,-500.0,0.00012794,2]
[346921383,1735381843720,-500.0,0.00012794,2]
[346921386,1735381843729,-500.0,0.00012794,2]
[346921389,1735381843739,-767.42,0.00012794,2]
[346921391,1735381843748,-500.0,0.00012794,2]
[346921393,1735381843757,-740.8,0.00012794,2]
[346921395,1735381843766,-500.0,0.00012794,2]
[346921397,1735381843775,-908.4,0.00012794,2]
[346921399,1735381843784,-500.0,0.00012794,2]
[346921401,1735381843793,-500.0,0.00012794,2]
[346921403,1735381843802,-551.78,0.00012794,2]
[346921405,1735381843812,-500.0,0.00012794,2]
[346921407,1735381843821,-564.76,0.00012794,2]
[346921409,1735381843830,-659.38,0.00012794,2]
[346921411,1735381843839,-500.0,0.00012794,2]
[346921413,1735381843849,-500.0,0.00012794,2]
[346921415,1735381843858,-500.0,0.00012794,2]
[346921417,1735381843867,-500.0,0.00012794,2]
[346921419,1735381843877,-500.0,0.00012795,2]
[346921421,1735381843886,-500.0,0.00012795,2]
[346921423,1735381843895,-500.0,0.00012795,2]
[346921425,1735381843905,-500.0,0.00012795,2]
[346921427,1735381843914,-500.0,0.00012795,2]
[346921429,1735381843923,-500.0,0.00012795,2]
[346921431,1735381843932,-553.30894751,0.00012795,2]
[346921433,1735381843942,-500.0,0.00012795,2]
[346921435,1735381843951,-500.0,0.00012795,2]
[346921437,1735381843960,-500.0,0.00012795,2]
[346921439,1735381843972,-500.0,0.00012795,2]
[346921441,1735381843981,-500.0,0.00012795,2]
[346921443,1735381843991,-213.51794983,0.00012795,2]
[346921445,1735381844000,-500.0,0.00012795,2]
[346921447,1735381844009,-500.0,0.00012795,2]
[346921449,1735381844019,-500.0,0.00012795,2]
[346921451,1735381844028,-500.0,0.00012795,2]
[346921453,1735381844037,-7964.98,0.00012795,2]
[346921455,1735381844046,-2218.87,0.00012798,2]
[346921457,1735381844055,-5545.23,0.00012798,2]
[346921459,1735381844064,-1353.68,0.00012798,2]
[346921461,1735381844073,-500.0,0.00012798,2]
[346921463,1735381844082,-876.88,0.00012798,2]
[346921465,1735381844091,-978.72,0.00012798,2]
[346921467,1735381844100,-1847.59,0.00012798,2]
[346921469,1735381844110,-1837.3,0.00012798,2]
[346921471,1735381844125,-1075.5,0.00012798,2]
[346921473,1735381844135,-1212.19,0.00012798,2]
[346921475,1735381844144,-2292.97,0.00012798,2]
[346921477,1735381844153,-3666.89,0.00012798,2]
[346921479,1735381844162,-3440.48,0.00012798,2]
[346921481,1735381844171,-21120.61,0.00012798,2]
[346921483,1735381844180,-1621.86,0.00012798,2]
[346921485,1735381844190,-1445.8,0.00012798,2]
[346921486,1735381844200,-1022.11,0.00012798,2]
[346921488,1735381844208,-2804.9,0.00012798,2]
[346921490,1735381844218,-11803.07,0.00012798,2]
[346921491,1735381844227,-679.15,0.00012798,2]
[346921492,1735381844236,-2008.25,0.00012798,2]
[346921493,1735381844246,-1960.81,0.00012798,2]
[346921494,1735381844255,-1366.83,0.00012798,2]
[346921495,1735381844263,-3555.85,0.00012798,2]
[346921496,1735381844272,-745.22,0.00012798,2]
[346921497,1735381844281,-1679.87,0.00012798,2]
[346921498,1735381844290,-1723.12,0.00012798,2]
[346921499,1735381844300,-1114.0,0.00012798,2]
[346921500,1735381844309,-2916.88,0.00012798,2]
[346921501,1735381844318,-2247.51,0.00012798,2]
[346921502,1735381844327,-1235.916,0.00012805,2]
[346921503,1735381844336,-150.0,0.00012883,2]
[346921504,1735381844345,-150.0,0.00012883,2]
[346921505,1735381844354,-514.761,0.00012889,2]
[346921506,1735381844363,-776.74,0.00012889,2]
[346921507,1735381844372,-1102.0,0.00012889,2]
[346921508,1735381844381,-150.0,0.00012889,2]
[346921509,1735381844390,-767.832,0.00012889,2]
[346921510,1735381844399,-3885.0,0.00012889,2]
[346921511,1735381844408,-495.59338925,0.00012899,2]
[346921512,1735381844418,-15952.17973214,0.000129,2]
[346921513,1735381845041,-500.0,0.00012678,2]
[346921514,1735381845053,-806.4500735,0.00012679,2]
[346921515,1735381845064,-192.1799265,0.00012679,2]
[346921516,1735381845073,-500.0,0.00012679,2]
[346921517,1735381845083,-153.8200735,0.00012679,2]
[346921518,1735381845094,-346.1799265,0.00012679,2]
[346921519,1735381845103,-1744.51262617,0.000129,2]
[346921520,1735381845123,-2282.0000001,0.000129,2]
[346921522,1735381846228,-34.30764159,0.000129,2]
[346921523,1735381846238,-5208.771,0.00012914,2]
[346921524,1735381846247,-500.0,0.00012952,2]
[346921525,1735381846256,-500.0,0.00012952,2]
[346921526,1735381846265,-500.0,0.00012952,2]
[346921527,1735381846274,-500.0,0.00012952,2]
[346921528,1735381846283,-500.0,0.00012952,2]
[346921529,1735381846292,-500.0,0.00012952,2]
[346921530,1735381846301,-236.28,0.00012952,2]
[346921531,1735381846311,-500.0,0.00012952,2]
[346921532,1735381846320,-680.38,0.00012952,2]
[346921533,1735381846329,-144.73107821,0.00012952,2]
[346921538,1735381847041,-289.5063925,0.00012952,2]
[346921539,1735381847053,-65.76252929,0.00012952,2]
[346921540,1735381847063,-500.0,0.00012953,2]
[346921541,1735381847072,-500.0,0.00012953,2]
[346921542,1735381847081,-500.0,0.00012953,2]
[346921543,1735381847091,-500.0,0.00012953,2]
[346921544,1735381847099,-500.0,0.00012953,2]
[346921545,1735381847108,-374.23747121,0.00012953,2]
[346921546,1735381847119,-125.76252879,0.00012953,2]
[346921547,1735381847128,-1027.26,0.00012953,2]
[346921548,1735381847141,-265.32725846,0.00012953,2]
[346921549,1735381847150,-500.0,0.00012953,2]
[346921550,1735381847159,-266.82404052,0.00012953,2]
[346921551,1735381847180,-291.23595948,0.00012953,2]
[346921552,1735381847189,-500.0,0.00012953,2]
[346921553,1735381847198,-500.0,0.00012953,2]
[346921554,1735381847207,-500.0,0.00012953,2]
[346921555,1735381847218,-316.41970309,0.00012953,2]
[346921556,1735381847229,-502.03393156,0.00012953,2]
[346921557,1735381847239,-500.0,0.00012953,2]
[346921558,1735381847247,-500.0,0.00012953,2]
[346921559,1735381847257,-377.57382135,0.00012953,2]
[346921560,1735381847265,-500.0,0.00012953,2]
[346921561,1735381847276,-500.0,0.00012953,2]
[346921562,1735381847286,-500.0,0.00012953,2]
[346921563,1735381847295,-411.119416,0.00012953,2]
[346921564,1735381847305,-500.0,0.00012953,2]
[346921565,1735381847314,-500.0,0.00012953,2]
[346921566,1735381847323,-373.487372,0.00012953,2]
[346921567,1735381847332,-601.00368571,0.00012953,2]
[346921568,1735381847341,-500.0,0.00012953,2]
[346921569,1735381847350,-490.16285251,0.00012953,2]
[346921570,1735381847359,-500.0,0.00012953,2]
[346921571,1735381847368,-500.0,0.00012953,2]
[346921572,1735381847377,-3220.8,0.00012953,2]
[346921573,1735381847386,-500.0,0.00012953,2]
[346921574,1735381847395,-500.0,0.00012953,2]
[346921575,1735381847403,-500.0,0.00012953,2]
[346921576,1735381847412,-500.0,0.00012953,2]
[346921577,1735381847421,-500.0,0.00012953,2]
[346921578,1735381847430,-500.0,0.00012953,2]
[346921579,1735381847439,-500.0,0.00012953,2]
[346921580,1735381847449,-500.0,0.00012953,2]
[346921581,1735381847458,-500.0,0.00012953,2]
[346921582,1735381847467,-500.0,0.00012953,2]
[346921583,1735381847477,-500.0,0.00012953,2]
[346921584,1735381847486,-500.0,0.00012953,2]
[346921585,1735381847495,-500.0,0.00012953,2]
[346921586,1735381847504,-500.0,0.00012953,2]
[346921587,1735381847513,-500.0,0.00012953,2]
[346921588,1735381847522,-837.57,0.00012953,2]
[346921589,1735381847531,-500.0,0.00012953,2]
[346921590,1735381847540,-500.0,0.00012953,2]
[346921591,1735381847549,-500.0,0.00012953,2]
[346921592,1735381847558,-502.02,0.00012953,2]
[346921593,1735381847567,-500.0,0.00012953,2]
[346921594,1735381847576,-500.0,0.00012953,2]
[346921595,1735381847585,-500.0,0.00012953,2]
[346921596,1735381847594,-500.0,0.00012953,2]
[346921597,1735381847603,-500.0,0.00012953,2]
[346921598,1735381847612,-500.0,0.00012953,2]
[346921599,1735381847621,-500.0,0.00012953,2]
[346921600,1735381847629,-574.56,0.00012953,2]
[346921601,1735381847638,-500.0,0.00012953,2]
[346921602,1735381847647,-500.0,0.00012953,2]
[346921603,1735381847656,-500.0,0.00012953,2]
[346921604,1735381847665,-4545.33,0.00012953,2]
[346921605,1735381847675,-500.0,0.00012953,2]
[346921606,1735381847683,-500.0,0.00012953,2]
[346921607,1735381847692,-793.31,0.00012953,2]
[346921608,1735381847702,-500.0,0.00012953,2]
[346921609,1735381847711,-500.0,0.00012953,2]
[346921610,1735381847721,-500.0,0.00012953,2]
[346921611,1735381847730,-500.0,0.00012953,2]
[346921612,1735381847739,-500.0,0.00012953,2]
[346921613,1735381847748,-500.0,0.00012953,2]
[346921614,1735381847757,-500.0,0.00012953,2]
[346921615,1735381847766,-823.12,0.00012953,2]
[346921616,1735381847775,-4725.62,0.00012953,2]
[346921617,1735381847784,-1076.3,0.00012953,2]
[346921618,1735381847793,-500.0,0.00012953,2]
[346921619,1735381847802,-500.0,0.00012953,2]
[346921620,1735381847811,-500.0,0.00012953,2]
[346921621,1735381847820,-1856.58,0.00012953,2]
[346921622,1735381847830,-500.0,0.00012953,2]
[346921623,1735381847839,-1713.06,0.00012953,2]
[346921624,1735381847848,-500.0,0.00012953,2]
[346921625,1735381847857,-500.0,0.00012953,2]
[346921626,1735381847866,-500.0,0.00012953,2]
[346921627,1735381847875,-500.0,0.00012953,2]
[346921628,1735381847885,-500.0,0.00012953,2]
[346921629,1735381847894,-500.0,0.00012953,2]
[346921630,1735381847903,-500.0,0.00012953,2]
[346921631,1735381847912,-500.0,0.00012953,2]
[346921632,1735381847921,-500.0,0.00012953,2]
[346921633,1735381847931,-500.0,0.00012953,2]
[346921634,1735381847940,-1126.08,0.00012953,2]
[346921635,1735381847950,-500.0,0.00012953,2]
[346921636,1735381847959,-612.15,0.00012953,2]
[346921637,1735381847968,-500.0,0.00012953,2]
[346921638,1735381847978,-500.0,0.00012953,2]
[346921639,1735381847987,-1670.83,0.00012953,2]
[346921640,1735381847996,-553.83,0.00012953,2]
[346921641,1735381848006,-500.0,0.00012953,2]
[346921642,1735381848015,-500.0,0.00012953,2]
[346921643,1735381848024,-582.76,0.00012953,2]
[346921644,1735381848034,-500.0,0.00012953,2]
[346921645,1735381848044,-500.0,0.00012953,2]
[346921646,1735381848053,-500.0,0.00012953,2]
[346921647,1735381848062,-500.0,0.00012953,2]
[346921648,1735381848072,-500.0,0.00012953,2]
[346921649,1735381848081,-500.0,0.00012953,2]
[346921650,1735381848090,-1810.02,0.00012953,2]
[346921651,1735381848099,-500.0,0.00012953,2]
[346921652,1735381848108,-500.0,0.00012953,2]
[346921653,1735381848117,-500.0,0.00012953,2]
[346921654,1735381848126,-887.3,0.00012953,2]
[346921655,1735381848138,-500.0,0.00012953,2]
[346921656,1735381848147,-500.0,0.00012953,2]
[346921657,1735381848157,-500.0,0.00012953,2]
[346921658,1735381848167,-540.43,0.00012953,2]
[346921659,1735381848176,-500.0,0.00012953,2]
[346921660,1735381848186,-500.0,0.00012953,2]
[346921661,1735381848195,-698.75,0.00012953,2]
[346921662,1735381848204,-500.0,0.00012953,2]
[346921663,1735381848214,-500.0,0.00012953,2]
[346921664,1735381848224,-2255.5,0.00012953,2]
[346921665,1735381848234,-500.0,0.00012953,2]
[346921666,1735381848243,-2158.86,0.00012953,2]
[346921667,1735381848253,-535.62,0.00012953,2]
[346921668,1735381848262,-531.17,0.00012953,2]
[346921669,1735381848272,-500.0,0.00012953,2]
[346921670,1735381848281,-500.0,0.00012953,2]
[346921671,1735381848291,-1305.24,0.00012953,2]
[346921672,1735381848300,-500.0,0.00012953,2]
[346921673,1735381848309,-500.0,0.00012953,2]
[346921674,1735381848318,-500.0,0.00012953,2]
[346921675,1735381848327,-500.0,0.00012953,2]
[346921676,1735381848337,-1284.05,0.00012953,2]
[346921677,1735381848346,-1277.14,0.00012953,2]
[346921678,1735381848355,-500.0,0.00012953,2]
[346921679,1735381848365,-650.96,0.00012953,2]
[346921680,1735381848374,-500.0,0.00012953,2]
[346921681,1735381848383,-500.0,0.00012953,2]
[346921682,1735381848392,-500.0,0.00012953,2]
[346921683,1735381848402,-1261.7,0.00012953,2]
[346921684,1735381848412,-500.0,0.00012953,2]
[346921685,1735381848421,-500.0,0.00012953,2]
[346921686,1735381848431,-500.0,0.00012953,2]
[346921687,1735381848440,-500.0,0.00012953,2]
[346921688,1735381848450,-500.0,0.00012953,2]
[346921689,1735381848459,-500.0,0.00012953,2]
[346921690,1735381848469,-500.0,0.00012953,2]
[346921691,1735381848478,-500.0,0.00012953,2]
[346921692,1735381848488,-650.48,0.00012953,2]
[346921693,1735381848497,-1429.15,0.00012953,2]
[346921694,1735381848507,-500.0,0.00012953,2]
[346921695,1735381848516,-500.0,0.00012953,2]
[346921696,1735381848525,-500.0,0.00012953,2]
[346921697,1735381848534,-500.0,0.00012953,2]
[346921698,1735381848543,-500.0,0.00012953,2]
[346921699,1735381848552,-675.21,0.00012953,2]
[346921700,1735381848561,-500.0,0.00012953,2]
[346921701,1735381848570,-500.0,0.00012953,2]
[346921702,1735381848579,-3577.88,0.00012953,2]
[346921703,1735381848588,-998.63,0.00012953,2]
[346921704,1735381848597,-500.0,0.00012953,2]
[346921705,1735381848606,-500.0,0.00012953,2]
[346921706,1735381848615,-500.0,0.00012969,2]
[346921707,1735381848624,-1162.02,0.00012969,2]
[346921708,1735381848633,-1491.36,0.00012969,2]
[346921709,1735381848642,-1334.02,0.00012969,2]
[346921710,1735381848651,-500.0,0.00012969,2]
[346921711,1735381848660,-2015.74,0.00012969,2]
[346921712,1735381848670,-1805.74,0.00012969,2]
[346921713,1735381848679,-1459.0,0.00012998,2]
[346921714,1735381848689,-409.76380172,0.00012998,2]
[346921715,1735381848698,-503.29952999,0.00012998,2]
[346921716,1735381848707,-500.0,0.00012998,2]
[346921717,1735381848716,-505.45336659,0.00012998,2]
[346921718,1735381848725,-500.0,0.00012998,2]
[346921719,1735381848734,-500.0,0.00012998,2]
[346921720,1735381848743,-368.84938013,0.00012998,2]
[346921721,1735381848752,-500.0,0.00012998,2]
[346921722,1735381848761,-500.0,0.00012998,2]
[346921723,1735381848770,-507.66963239,0.00012998,2]
[346921724,1735381848779,-504.04085972,0.00012998,2]
[346921725,1735381848788,-295.84819634,0.00012998,2]
[346921726,1735381848797,-500.0,0.00012998,2]
[346921727,1735381848807,-155.8110296,0.00012998,2]
[346921728,1735381848816,-448.08790338,0.00012998,2]
[346921729,1735381848827,-500.0,0.00012998,2]
[346921730,1735381848836,-500.0,0.00012998,2]
[346921731,1735381848846,-500.0,0.00012998,2]
[346921732,1735381848855,-500.0,0.00012998,2]
[346921733,1735381848864,-500.0,0.00012998,2]
[346921734,1735381848873,-500.0,0.00012998,2]
[346921735,1735381848882,-500.0,0.00012998,2]
[346921736,1735381848891,-500.0,0.00012998,2]
[346921737,1735381848900,-500.0,0.00012998,2]
[346921738,1735381848909,-500.0,0.00012998,2]
[346921739,1735381848918,-150.81846058,0.00012998,2]
[346921740,1735381848927,-500.0,0.00012998,2]
[346921741,1735381848936,-390.99992435,0.00012998,2]
[346921742,1735381848945,-500.0,0.00012998,2]
[346921743,1735381848954,-342.24,0.00012998,2]
[346921744,1735381848963,-586.65632059,0.00012998,2]
[346921745,1735381848972,-350939.57880291,0.00012998,2]
[346921746,1735381848981,-500.0,0.00012998,2]
[346921747,1735381848991,-500.0,0.00012998,2]
[346921748,1735381849002,-500.0,0.00012998,2]
[346921749,1735381849011,-500.0,0.00012998,2]
[346921750,1735381849020,-500.0,0.00012998,2]
[346921751,1735381849028,-500.0,0.00012998,2]
[346921752,1735381849038,-500.0,0.00012998,2]
[346921753,1735381849047,-500.0,0.00012998,2]
[346921754,1735381849057,-500.0,0.00012998,2]
[346921755,1735381849066,-506.61432742,0.00012998,2]
[346921756,1735381849076,-500.0,0.00012998,2]
[346921757,1735381849085,-500.0,0.00012998,2]
[346921758,1735381849094,-500.0,0.00012998,2]
[346921759,1735381849102,-500.0,0.00012998,2]
[346921760,1735381849112,-500.0,0.00012998,2]
[346921761,1735381849121,-500.0,0.00012998,2]
[346921762,1735381849130,-500.0,0.00012998,2]
[346921763,1735381849144,-500.0,0.00012998,2]
[346921764,1735381849153,-500.0,0.00012998,2]
[346921765,1735381849162,-500.0,0.00012998,2]
[346921766,1735381849171,-500.0,0.00012998,2]
[346921767,1735381849181,-500.0,0.00012998,2]
[346921768,1735381849190,-500.0,0.00012998,2]
[346921769,1735381849199,-500.0,0.00012998,2]
[346921770,1735381849208,-500.0,0.00012998,2]
[346921771,1735381849217,-500.0,0.00012998,2]
[346921772,1735381849228,-500.0,0.00012998,2]
[346921773,1735381849238,-500.0,0.00012998,2]
[346921774,1735381849247,-500.0,0.00012998,2]
[346921775,1735381849256,-500.0,0.00012998,2]
[346921776,1735381849265,-500.0,0.00012998,2]
[346921777,1735381849275,-500.0,0.00012998,2]
[346921778,1735381849284,-500.0,0.00012998,2]
[346921779,1735381849293,-500.0,0.00012998,2]
[346921780,1735381849302,-500.0,0.00012998,2]
[346921781,1735381849311,-500.0,0.00012998,2]
[346921782,1735381849320,-500.0,0.00012998,2]
[346921783,1735381849329,-500.0,0.00012998,2]
[346921784,1735381849338,-500.0,0.00012998,2]
[346921785,1735381849348,-500.0,0.00012998,2]
[346921786,1735381849357,-500.0,0.00012998,2]
[346921787,1735381849366,-500.0,0.00012998,2]
[346921788,1735381849375,-524.75488163,0.00012998,2]
[346921789,1735381849384,-500.0,0.00012998,2]
[346921790,1735381849393,-500.0,0.00012998,2]
[346921791,1735381849402,-500.0,0.00012998,2]
[346921792,1735381849411,-203.18339359,0.00012998,2]
[346921793,1735381849421,-500.0,0.00012998,2]
[346921794,1735381849430,-500.0,0.00012998,2]
[346921795,1735381849439,-500.0,0.00012998,2]
[346921796,1735381849448,-500.0,0.00012998,2]
[346921797,1735381849458,-500.0,0.00012998,2]
[346921798,1735381849467,-500.0,0.00012998,2]
[346921799,1735381849476,-500.0,0.00012998,2]
[346921800,1735381849485,-500.0,0.00012998,2]
[346921801,1735381849495,-500.0,0.00012998,2]
[346921802,1735381849504,-500.0,0.00012998,2]
[346921803,1735381849513,-500.0,0.00012998,2]
[346921804,1735381849522,-305.04830816,0.00012998,2]
[346921805,1735381849531,-500.0,0.00012998,2]
[346921806,1735381849540,-637.28,0.00012998,2]
[346921807,1735381849549,-500.0,0.00012998,2]
[346921808,1735381849559,-500.0,0.00012998,2]
[346921809,1735381849568,-394.6383974,0.00012998,2]
[346921810,1735381849577,-500.0,0.00012998,2]
[346921811,1735381849586,-500.0,0.00012998,2]
[346921812,1735381849595,-500.0,0.00012998,2]
[346921813,1735381849604,-500.0,0.00012998,2]
[346921814,1735381849613,-500.0,0.00012998,2]
[346921815,1735381849622,-500.0,0.00012998,2]
[346921816,1735381849632,-500.0,0.00012998,2]
[346921817,1735381849641,-500.0,0.00012998,2]
[346921818,1735381849651,-500.0,0.00012998,2]
[346921819,1735381849661,-500.0,0.00012998,2]
[346921820,1735381849670,-500.0,0.00012998,2]
[346921821,1735381849678,-500.0,0.00012998,2]
[346921822,1735381849687,-500.0,0.00012998,2]
[346921823,1735381849697,-500.0,0.00012998,2]
[346921824,1735381849706,-357.44620689,0.00012998,2]
[346921825,1735381849716,-500.0,0.00012998,2]
[346921826,1735381849725,-500.0,0.00012998,2]
[346921827,1735381849734,-500.0,0.00012998,2]
[346921828,1735381849743,-500.0,0.00012998,2]
[346921829,1735381849752,-500.0,0.00012998,2]
[346921830,1735381849762,-500.0,0.00012998,2]
[346921831,1735381849771,-722.54,0.00012998,2]
[346921832,1735381849781,-500.0,0.00012998,2]
[346921833,1735381849791,-500.0,0.00012998,2]
[346921834,1735381849799,-500.0,0.00012998,2]
[346921835,1735381849808,-500.0,0.00012998,2]
[346921836,1735381849817,-500.0,0.00012998,2]
[346921837,1735381849827,-500.0,0.00012998,2]
[346921838,1735381849837,-500.0,0.00012998,2]
[346921839,1735381849847,-524.76278779,0.00012998,2]
[346921840,1735381849856,-500.0,0.00012998,2]
[346921841,1735381849866,-500.0,0.00012998,2]
[346921842,1735381849875,-500.0,0.00012998,2]
[346921843,1735381849886,-764.2,0.00012998,2]
[346921844,1735381849897,-500.0,0.00012998,2]
[346921845,1735381849907,-1598.97,0.00012998,2]
[346921846,1735381849916,-500.0,0.00012998,2]
[346921847,1735381849927,-500.0,0.00012998,2]
[346921848,1735381849936,-500.0,0.00012998,2]
[346921849,1735381849946,-500.0,0.00012998,2]